Cogmind - Beta 14 @@@ ROGUE MODE // 2024.09.04 @ 10:36:10 Player: Corvi Result: Destroyed by S-10 Pest with Light Assault Rifle Performance ------------- Evolutions (0) 0 Regions Visited (2) 400 Robots Destroyed (18) 90 Value Destroyed (426) 426 Prototype IDs (0) 0 Alien Tech Used (0) 0 Bonus (0) 0 TOTAL SCORE: 916 Bonus ------- None Cogmind --------- Core Integrity 0/250 Matter 300/300 Energy 250/250 System Corruption 0% Temperature Cool (0) Movement Treading (160) Location -10/Mines Parts ------- > --- POWER (1) -------- Ion Engine > --- PROPULSION (2) --- Improved Treads Improved Treads > --- UTILITY (2) ------ Medium Storage Unit Signal Interpreter > --- WEAPON (2) ------- Particle Cannon Mining Claw > --- INVENTORY (10) --- Light Nuclear Core Light Treads Improved Treads Improved Treads Heat Sink Improved Heat Sink High-capacity Storage Unit Sensor Array Hardened Light Armor Plating Hardened Light Armor Plating Peak State ------------ > --- POWER ------------ Ion Engine > --- PROPULSION ------- Improved Treads Improved Treads > --- UTILITY ---------- Small Storage Unit Signal Interpreter > --- WEAPON ----------- Particle Cannon Particle Cannon > --- INVENTORY -------- Ion Engine Light Nuclear Core Improved Treads Improved Treads Heat Sink Improved Heat Sink Hardened Light Armor Plating Hardened Light Armor Plating [Rating: 12] Favorites ----------- Power Ion Engine Engine Ion Engine Propulsion Improved Treads Treads Improved Treads Leg Aluminum Leg Utility Signal Interpreter Device Seismic Detector Storage Small Storage Unit Processor Signal Interpreter Weapon Particle Cannon Energy Gun Medium Laser Energy Cannon Particle Cannon Ballistic Gun Light Assault Rifle Slashing Weapon Mining Claw Build | -11 -10 -10 ------- Run | Yrd Mat Min Slots Evolved . | . . . Power . | . . . Propulsion . | . . . Utility . | . . . Weapon . | . . . Parts Attached 27 | 8 19 . Power 5 | 2 3 . Engine 5 | 2 3 . Core . | . . . Reactor . | . . . Propulsion 9 | 2 7 . Treads 7 | 2 5 . Leg 2 | . 2 . Wheel . | . . . Hover . | . . . Flight . | . . . Utility 4 | 2 2 . Device 1 | 1 . . Storage 2 | 1 1 . Processor 1 | . 1 . Hackware . | . . . Protection . | . . . Artifact . | . . . Weapon 9 | 2 7 . Energy Gun 4 | 2 2 . Energy Cannon 2 | . 2 . Ballistic Gun 2 | . 2 . Ballistic Cannon . | . . . Launcher . | . . . Special Weapon . | . . . Impact Weapon . | . . . Slashing Weapon 1 | . 1 . Piercing Weapon . | . . . Special Melee Weapon . | . . . Unidentified Prototypes . | . . . Parts Lost . | . . . Power . | . . . Propulsion . | . . . Utility . | . . . Weapon . | . . . Highest Loss Streak . | . . . To Critical Strikes . | . . . Average Slot Usage (%) 99 | . 98 100 Engine 13 | . 13 14 Treads 27 | . 27 28 Storage 14 | . 14 14 Processor 13 | . 13 14 Energy Gun 5 | . 8 . Energy Cannon 13 | . 13 14 Ballistic Gun 2 | . 3 . Slashing Weapon 6 | . 2 14 Peak Build Rating 12 | 7 12 11 Average Rating 9 | 5 9 11 On Entrance 6 | . 7 11 Naked Turns . | . . . Heaviest Build 23 | 13 23 21 Greatest Support 46 | 40 46 46 Greatest Overweight (x) 5 | . 5 . Average Overweight (x) . | . . . Largest Inventory Capacity 10 | 8 10 10 Average Capacity 8 | 7 8 10 Most Carried 10 | 3 10 10 Average Carried 7 | 1 6 10 Final Capacity 10 | 8 10 10 Final Carried 10 | 2 10 10 Class Distribution -------------------- 100% | Mutant Dominant Class ---------------- Mutant | -10/Materials Mutant | -10/Mines Resources | -11 -10 -10 ----------- Run | Yrd Mat Min Matter Collected 482 | 236 236 10 Remotely . | . . . Salvage Created 644 | 12 591 41 Parts 26 | 3 20 3 Haulers Intercepted . | . . . Recyclers Shooed . | . . . Parts Field Recycled . | . . . Retrieved Matter . | . . . Parts Self-Destructed . | . . . Prevented . | . . . Kills | -11 -10 -10 ------- Run | Yrd Mat Min Combat Hostiles Destroyed 12 | . 9 3 Guns 6 | . 6 . Cannons 5 | . 2 3 Classes Destroyed 7 | 1 5 1 Worker 1 | . 1 . Builder 1 | . 1 . Tunneler 1 | 1 . . Recycler 2 | . 2 . Watcher 1 | . 1 . Swarmer 3 | . . 3 Grunt 9 | . 9 . Best Kill Streak 3 | 1 3 3 Combat Bots Only 3 | . 2 3 Max Kills in Single Turn 2 | 1 2 1 Gunslinging . | . . . Exploded . | . . . Melee . | . . . Uniques/NPCs Destroyed . | . . . Combat | -11 -10 -10 -------- Run | Yrd Mat Min Hostile Shots Fired 101 | . 62 39 Missed 26 | . 19 7 Damage Taken 772 | . 522 250 Core 255 | . 153 102 Absorbed by Shields . | . . . Core Remaining (%) 100 | 100 . . Volleys Fired 63 | 1 50 12 Largest 2 | 2 2 1 Hottest 136 | 100 136 68 Shots Fired 109 | 2 95 12 Gun 75 | 2 73 . Cannon 34 | . 22 12 Launcher . | . . . Special . | . . . Kinetic 17 | . 17 . Thermal 92 | 2 78 12 Explosive . | . . . Electromagnetic . | . . . Robot Hit Streak 18 | 1 18 4 Robot Miss Streak 3 | . 2 3 Penetration Max . | . . . Secondary Targets . | . . . Shots Hit Robots 73 | 1 65 7 Core Hits 29 | 1 25 3 Critical Kills . | . . . Critical Parts Destroyed . | . . . Critical Strikes 1 | . 1 . Burn 1 | . 1 . Melee Attacks 4 | . . 4 Impact . | . . . Slashing 4 | . . 4 Piercing . | . . . Sneak Attacks 1 | . . 1 Combat Hostiles . | . . . Follow-up Attacks . | . . . Damage Inflicted 1049 | 13 869 167 Guns 634 | 13 621 . Cannons 368 | . 245 123 Explosions . | . . . Melee 44 | . . 44 Ramming 3 | . 3 . Kinetic 111 | . 111 . Thermal 891 | 13 755 123 Explosive . | . . . Electromagnetic . | . . . Impact . | . . . Slashing 44 | . . 44 Piercing . | . . . Highest Corruption . | . . . Average Corruption . | . . . Corruption Purged . | . . . Corruption Blocked . | . . . Overload Shots . | . . . Overflow Damage 11 | . 11 . Projectiles 11 | . 11 . Explosions . | . . . Melee . | . . . Knockbacks . | . . . Impact . | . . . Kinetic . | . . . Secondary . | . . . Self-Inflicted Damage . | . . . Shots . | . . . Rammed 1 | . 1 . Targets Rammed 1 | . 1 . Kicked . | . . . Crushed . | . . . Highest Temperature 474 | 39 474 120 Average Temperature 131 | 20 147 52 Received Heat Transfer 297 | . 297 . Effects 5 | . 5 . Shutdowns 2 | . 2 . Energy Bleed 1 | . 1 . Interference 1 | . 1 . Short Circuit 1 | . 1 . Siege Activations . | . . . Robots Corrupted . | . . . Combat Hostiles . | . . . Parts Fried . | . . . Impact Corruptions . | . . . Robots Melted 1 | . 1 . Combat Hostiles 1 | . 1 . Parts Melted 3 | . 3 . Heat Transferred 2294 | 37 2035 222 Parts Sabotaged . | . . . Parts Stolen . | . . . Parts Stripped . | . . . Power Chain Reactions . | . . . Alert | -11 -10 -10 ------- Run | Yrd Mat Min Peak Influence 155 | 5 155 95 Initial 25 | . 3 25 Average 53 | 2 63 43 Maximum Alert Level . | . . . Low Security (%) 100 | 100 100 100 Level 1 . | . . . Level 2 . | . . . Level 3 . | . . . Level 4 . | . . . Level 5 . | . . . High Security . | . . . Max Security . | . . . Squads Dispatched 3 | . 3 . Investigation 2 | . 2 . Extermination . | . . . Reinforcement 1 | . 1 . Assault . | . . . Garrison . | . . . Intercept . | . . . Searches Triggered . | . . . Construction Impeded . | . . . Haulers Reinforced . | . . . Active Scanning Responses . | . . . Cargo Convoy Interrupts . | . . . Stealth | -11 -10 -10 --------- Run | Yrd Mat Min Distress Signals 1 | . 1 . Communications Jammed . | . . . Distress Signals . | . . . Times Spotted 31 | . 22 9 Peak Tracking Total 3 | . 2 3 Tactical Retreats 2 | . 1 1 Traps | -11 -10 -10 ------- Run | Yrd Mat Min Traps Triggered 4 | . 4 . Indirectly . | . . . Trap Hack Attempts . | . . . Triggered . | . . . Disarmed . | . . . Reprogrammed . | . . . Reused . | . . . Traps Extracted . | . . . Installed . | . . . Triggered . | . . . Machines | -11 -10 -10 ---------- Run | Yrd Mat Min Machines Disabled 1 | . 1 . Max in Single Turn 1 | . 1 . Machines Repaired . | . . . Machines Dismantled . | . . . Machines Sabotaged . | . . . Overloaded Fab Kills . | . . . Hacking | -11 -10 -10 --------- Run | Yrd Mat Min Machines Accessed 5 | . 5 . Terminals 5 | . 5 . Fabricators . | . . . Repair Stations . | . . . Recycling Units . | . . . Scanalyzers . | . . . Garrison Access . | . . . Total Hacks 9 | . 9 . Successful 5 | . 5 . Failed 4 | . 4 . Catastrophic 1 | . 1 . Database Lockouts . | . . . Manual 2 | . 2 . Terminals 9 | . 9 . Fabricators . | . . . Repair Stations . | . . . Recycling Units . | . . . Scanalyzers . | . . . Garrison Access . | . . . Terminal Hacks 5 | . 5 . Record 1 | . 1 . Alert Level 2 | . 2 . Unreport Threat 1 | . 1 . Locate Traps 1 | . 1 . Fabricator Hacks . | . . . Repair Station Hacks . | . . . Recycling Unit Hacks . | . . . Scanalyzer . | . . . Garrison Access Hacks . | . . . Unauthorized Hacks . | . . . Terminals . | . . . Fabricators . | . . . Repair Stations . | . . . Recycling Units . | . . . Scanalyzers . | . . . Garrison Access . | . . . Data Cores Recovered . | . . . Used . | . . . Hacking Detections 4 | . 4 . Full Trace Events . | . . . Feedback Events . | . . . Feedback Blocked . | . . . Robot Schematics Acquired . | . . . Robots Built . | . . . Authchips . | . . . Time . | . . . Total Robot Build Rating . | . . . Part Schematics Acquired . | . . . Parts Built . | . . . Authchips . | . . . Time . | . . . Total Part Build Rating . | . . . Parts Repaired . | . . . Time . | . . . Parts Recycled . | . . . Recycled Matter . | . . . Retrieved Matter . | . . . Retrieved Components . | . . . Parts Scanalyzed . | . . . Part Schematics Acquired . | . . . Parts Damaged . | . . . Bothacking | -11 -10 -10 ------------ Run | Yrd Mat Min Used RIF Installer . | . . . Robots Hacked . | . . . Non-combat . | . . . Combat . | . . . Robot Hacks Applied . | . . . Relay Couplers Released . | . . . Fabnet Peak Effective % . | . . . Robots Rewired . | . . . Allies Hacked . | . . . Hacks Repelled . | . . . Allies | -11 -10 -10 -------- Run | Yrd Mat Min Total Allies . | . . . Largest Group . | . . . Highest-Rated Group . | . . . Highest-Rated Ally . | . . . Total Orders . | . . . Ally Attacks . | . . . Total Damage . | . . . Kills . | . . . Allies Corrupted . | . . . Allies Melted . | . . . Intel | -11 -10 -10 ------- Run | Yrd Mat Min Robot Analysis Total . | . . . Derelict Logs Recovered 2 | . . 2 Drone Launches . | . . . Drone Recoveries . | . . . Exploration | -11 -10 -10 ------------- Run | Yrd Mat Min Turns Passed 2480 | 167 1597 716 Spaces Moved 1322 | 95 807 420 Core 10 | 7 3 . Treads 1298 | 88 790 420 Legs 14 | . 14 . Wheels . | . . . Hover . | . . . Flight . | . . . Fastest Speed 50 | 50 120 160 Average Speed 159 | 151 159 160 Slowest Speed 300 | 160 300 160 Overloaded Moves . | . . . Propulsion Burnouts . | . . . Robots Hopped . | . . . Cave-ins Triggered . | . . . Exploration Rate (%) 49 | 6 83 59 Regions Visited 2 Branch Regions 1 Pre-discovered Areas . | . . . Known Exits Taken 1 | . 1 . Unknown Exits Taken 1 | 1 . . Scrap Searched . | . . . Spaces Dug . | . . . Terrain Destroyed . | . . . Melee . | . . . Projectile . | . . . AOE . | . . . Terrain Rammed . | . . . Walls Destroyed . | . . . Machines Disabled . | . . . Actions | -11 -10 -10 --------- Run | Yrd Mat Min Total 1585 | 115 1026 444 Wait 129 | 3 118 8 Move 1320 | 94 806 420 Hop . | . . . Pick Up 27 | 9 18 . Fast Attach 7 | . 7 . Attach 15 | 7 8 . Detach 2 | . 2 . Swap 5 | 1 4 . Drop 12 | . 12 . Fire 63 | 1 50 12 Melee 4 | . . 4 Ram . | . . . Kick . | . . . Crush 1 | . 1 . Escape Stasis . | . . . Rewire . | . . . Trap . | . . . Miscellaneous . | . . . Route ------- -11/Scrapyard -10/Materials (discovered 3 exits: *Mat x2 / *Min) -10/Mines (discovered 2 exits: *Mat / *Exi) History --------- Turn | Location | Event 15 | -11/Scrapyard | Discovered new exit (range 15) 168 | -11/Scrapyard | Entered Materials 224 | -10/Materials | Discovered new exit (range 14) 316 | -10/Materials | Build established: Mutant 730 | -10/Materials | Core integrity fell below 50% 902 | -10/Materials | Discovered new exit (range 10) 915 | -10/Materials | Identified exit to Materials 1139 | -10/Materials | Identified exit to Mines 1548 | -10/Materials | Discovered exit to Materials (range 3) 1765 | -10/Materials | Entered Mines 1799 | -10/Mines | Learned Materials emergency access door positions 1807 | -10/Mines | Met a Derelict bent on vengeance 1850 | -10/Mines | Discovered exit to Materials (range 8) 1885 | -10/Mines | Core integrity fell below 20% 2118 | -10/Mines | Deemed a non-threat by the Exiles lab entrance 2120 | -10/Mines | Discovered new exit (range 5) 2126 | -10/Mines | Identified exit to Exiles 2411 | -10/Mines | Learned Materials terminal intel 2481 | -10/Mines | Destroyed by S-10 Pest with Light Assault Rifle Last Messages --------------- R-06 Scavenger collects Lgt. Ion Engine. Sneak attack on R-06 Scavenger. Acquired 10 matter. LH-QUS(g): "WHERE ARE YOU, UNAWARE TRASH?! VENGEANCE UPON YOU!" "No threat detected, you may enter." EXIT=FOUND EXIT=IDENTIFIED: EXILES K-01 Serf collects debris. LH-QUS(g): "UNAWARE KILLED MY BEST FRIEND! VENGEANCE!" K-01 Serf collects debris. S-10 Pest destroyed. K-01 Serf collects debris. S-10 Pest destroyed. K-01 Serf collects debris. R-06 Scavenger collects Flight Unit. Acquired derelict log, extracted data. Data stored: Materials terminal intel. R-06 Scavenger collects Flight Unit. Map ----- +----------------------------------------------------+ | ?????????????????????????????????????????????????? | | ???????####??????????????????????????????????????? | | ??????## ##?????????????????????????????????????? | | ??????# ##????????????????????????????????????? | | ??????# #????????????????????????????????????? | | ?####### ##???????????????????????????????????? | | ## ^ # ##??????????????????????????????????? | | # ## ^# #??????????????????????????????????? | | #^ # #??????????????????????????????????? | | # ^ # ##?????###???? ???????????????????? | | # # #???? ##?? ???????????????????? | | # #???? ## #??????????????????? | | ^ ##???? ???????????????????? | | ##????# ?????????????????????? | | ## #????# ??????????????????????? | | ### #??## #???????????????????????? | | ### ##?# #?## ??????????????????????????? | | ??## ###??# ### #????????????????????????????? | | ???# #????# ## #?????????????????????????????? | | ???# #????# ##????????????????????????????? | | #### #????# ##??####??????? ##???????????? | | #????##### #### ###### ##??????????? | | #### #?######?# ## s ##?????????? | | #??# ### ### ## s s #?????????? | | #?## ### ## #????????? | | ??# #?# @ #######?????? ???????? | | ??# ### ##?# k#?????????????????????? | | ??# ##########?# #??# ##????????????????????? | | ??##?????####??# #??## #????????????????????? | | ??????#### ##?# #???## #????????????????????? | | ?????## ### #????## ##????????????????????? | | ????## #?????## #?????????????????????? | | ???## ######??????# #?????????????????????? | | #### ###???????????# #?????????????????????? | | ## ##?????????????# #?????????????????????? | | #??????????????# #?????????????????????? | | ##?###?????????# #?????????????????????? | | ## ##?????#### #?????????????????????? | | ## #?????# #?????????????????????? | | ?## #?????# #####?????????????????????? | | ??## ##?????# #?????????????????????????? | | ???# ##??????# #?????????????????????????? | | ???# ##???????# #?????????????????????????? | | #??## ##??????### #?????????????????????????? | | #???## ##??????## ####??????????????????????? | | #???## #?####### ##?????????????????????? | | #???# #?#= #?????????????????????? | | ????# ###% % #?????????????????????? | | ????# #### #?????????????????????? | | ????## ######??## # #????????????????????? | +----------------------------------------------------+ Best States ------------- Heat Dissipation 25 Energy Generation 10 Energy Capacity 250 Matter Stores 300 Matter Capacity 300 Sight Range 16 Terrain Scan Density 10 Evasion (%) 45 Recoil Reduction 2 Item Schematics ----------------- None Robot Schematics ------------------ None Fabricated ------------ Nothing Alien Tech Used ----------------- None Achievements -------------- Everything Is Under Control It's Just You Challenges ------------ None Game ------ Seed TacticalArchitectCapacitor Manual? 0 Play Time 00:25:20 Cumulative 3.5 hours Start 2024.09.04 @ 10:10:33 End 2024.09.04 @ 10:36:10 Sessions 1 Manual Loads 0 Difficulty Rogue Special Mode None Game No. 4 Rogue 4 Adventurer 0 Explorer 0 Win Type - Total 0 Types 0/0/0/0/0/0/0/0/0 Lore% 1 Gallery% 7 Achievement% 10 Wizard Run 0 Options --------- Layout 1 ASCII 0 Keyboard 0 Movement Arrows Keybinds 0 Fullscreen 1 Font 24/Smallcaps Map View 50x35 Zoom Use 0% Tactical HUD 0 Map Filters NONE Filters NONE Steam 0 RUN: 6d093420-9848-42c9-b997-64c9fc6309b6